Cogmind - Beta 13 *** ADVENTURER MODE // 2024.06.22 @ 13:05:03 Player: yub Result: Destroyed by G-47 Trooper with Particle Gun Performance ------------- Evolutions (2) 1000 Regions Visited (6) 1200 Robots Destroyed (7) 35 Value Destroyed (181) 181 Prototype IDs (23) 460 Alien Tech Used (0) 0 Bonus (500) 500 TOTAL SCORE: 3376 Bonus ------- Entered Garrisons 200 Aligned with FarCom 300 Cogmind --------- Core Integrity 0/550 Matter 230/300 Energy 54/100 System Corruption 0% Temperature Cool (9) Movement Walking (120) Location -8/Garrison Parts ------- > --- POWER (2) -------- (None) > --- PROPULSION (2) --- Flexi-carbon Leg > --- UTILITY (5) ------ Improved Signal Interpreter System Shield Long-range Tractor Beam > --- WEAPON (2) ------- (None) > --- INVENTORY (5) ---- (None) Peak State ------------ > --- POWER ------------ Light Ion Engine Light Ion Engine > --- PROPULSION ------- Flexi-carbon Leg Flexi-carbon Leg > --- UTILITY ---------- Small Storage Unit Structural Scanner Seismic Detector Targeting Computer Reaction Control System > --- WEAPON ----------- Medium Laser Gauss Rifle > --- INVENTORY -------- Aluminum Leg Improved Signal Interpreter Improved Power Shielding System Shield Long-range Tractor Beam Chronowheel Shock Rifle Autogun [Rating: 27] Favorites ----------- Power Light Ion Engine Engine Light Ion Engine Propulsion Aluminum Leg Leg Aluminum Leg Utility Small Storage Unit Device Structural Scanner Storage Small Storage Unit Processor Targeting Computer Hackware System Shield Protection Improved Power Shielding Weapon Small Laser Energy Gun Small Laser Ballistic Gun Gauss Rifle Special Weapon Mining Laser Build | -11 -10 -10 -10 -9 -8 -8 ------- Run | Yrd Mat Min Exi Min Mat Gar Slots Evolved 4 | . . . . . 4 . Power 1 | . . . . . 1 . Propulsion . | . . . . . . . Utility 3 | . . . . . 3 . Weapon . | . . . . . . . Parts Attached 32 | 6 5 . . 3 13 5 Power 3 | 1 . . . . 2 . Engine 3 | 1 . . . . 2 . Core . | . . . . . . . Reactor . | . . . . . . . Propulsion 10 | 2 1 . . 2 3 2 Treads . | . . . . . . . Leg 10 | 2 1 . . 2 3 2 Wheel . | . . . . . . . Hover . | . . . . . . . Flight . | . . . . . . . Utility 9 | 1 1 . . . 4 3 Device 4 | . 1 . . . 2 1 Storage 1 | 1 . . . . . . Processor 2 | . . . . . 1 1 Hackware 1 | . . . . . . 1 Protection 1 | . . . . . 1 . Artifact . | . . . . . . . Weapon 10 | 2 3 . . 1 4 . Energy Gun 5 | 2 1 . . 1 1 . Energy Cannon . | . . . . . . . Ballistic Gun 3 | . . . . . 3 . Ballistic Cannon . | . . . . . . . Launcher . | . . . . . . . Special Weapon 2 | . 2 . . . . . Impact Weapon . | . . . . . . . Slashing Weapon . | . . . . . . . Piercing Weapon . | . . . . . . . Special Melee Weapon . | . . . . . . . Unidentified Prototypes . | . . . . . . . Parts Lost 15 | . . . . . 14 1 Power 3 | . . . . . 3 . Propulsion 3 | . . . . . 2 1 Utility 5 | . . . . . 5 . Weapon 4 | . . . . . 4 . Highest Loss Streak 13 | . . . . . 13 1 To Critical Strikes . | . . . . . . . Average Slot Usage (%) 93 | . 99 100 100 100 90 19 Engine 13 | . 14 14 14 14 13 . Leg 24 | . 28 28 28 28 17 17 Device 16 | . 13 14 14 14 22 . Storage 11 | . 14 14 14 14 9 . Processor 2 | . . . . . 8 . Energy Gun 14 | . 16 14 14 16 13 . Ballistic Gun 1 | . . . . . 3 . Special Weapon 8 | . 11 14 14 11 . . Naked Turns 2 | . . . . . 2 . Heaviest Build 20 | 11 12 11 11 12 20 1 Greatest Support 40 | 20 20 20 20 40 40 40 Greatest Overweight (x) 2 | 2 . . . . 1 . Average Overweight (x) . | . . . . . . . Largest Inventory Capacity 8 | 8 8 8 8 8 8 5 Average Capacity 7 | 6 8 8 8 8 7 5 Most Carried 8 | 6 6 4 5 8 8 4 Average Carried 5 | 2 3 4 4 5 6 2 Final Capacity 8 | 8 8 8 8 8 5 5 Final Carried 8 | 2 4 4 5 8 5 . Class Distribution -------------------- 95% | Mutant 4% | Scavenger-Mutant Dominant Class ---------------- Mutant | -10/Materials Mutant | -10/Mines Mutant | -10/Exiles Mutant | -9/Mines Mutant | -8/Materials Mutant | -8/Garrison Resources | -11 -10 -10 -10 -9 -8 -8 ----------- Run | Yrd Mat Min Exi Min Mat Gar Matter Collected 365 | 215 41 . . 52 57 . Remotely . | . . . . . . . Salvage Created 193 | . 41 . . 95 57 . Parts 9 | . 4 . . 3 2 . Haulers Intercepted . | . . . . . . . Recyclers Shooed 1 | . . . . 1 . . Parts Field Recycled . | . . . . . . . Retrieved Matter . | . . . . . . . Parts Self-Destructed . | . . . . . . . Prevented . | . . . . . . . Kills | -11 -10 -10 -10 -9 -8 -8 ------- Run | Yrd Mat Min Exi Min Mat Gar Combat Hostiles Destroyed 6 | . 3 . . 2 1 . Guns 5 | . 2 . . 2 1 . Cannons 1 | . 1 . . . . . Classes Destroyed 4 | . 2 . . 1 1 . Builder 1 | . 1 . . . . . Swarmer 3 | . 3 . . . . . Grunt 2 | . . . . 2 . . Hunter 1 | . . . . . 1 . Best Kill Streak 3 | . 3 . . 2 1 . Combat Bots Only 2 | . 2 . . 2 1 . Max Kills in Single Turn 1 | . 1 . . 1 1 . Gunslinging . | . . . . . . . Exploded . | . . . . . . . Melee . | . . . . . . . Uniques/NPCs Destroyed . | . . . . . . . Combat | -11 -10 -10 -10 -9 -8 -8 -------- Run | Yrd Mat Min Exi Min Mat Gar Hostile Shots Fired 280 | . 21 . . 9 227 23 Missed 96 | . 5 . . 2 77 12 Damage Taken 1969 | . 101 . . 101 1637 130 Core 602 | . 29 . . 21 490 62 Absorbed by Shields . | . . . . . . . Redirected to Shielding 106 | . . . . . 106 . Ignored by Resistances 574 | . 33 . . 30 474 37 Core Remaining (%) 90 | 100 . . . 80 . . Volleys Fired 24 | . 9 . . 7 8 . Largest 2 | . 2 . . 2 2 . Hottest 140 | . 140 . . 90 78 . Shots Fired 45 | . 18 . . 12 15 . Gun 36 | . 9 . . 12 15 . Cannon . | . . . . . . . Launcher . | . . . . . . . Special 9 | . 9 . . . . . Kinetic 8 | . . . . . 8 . Thermal 36 | . 18 . . 12 6 . Explosive . | . . . . . . . Electromagnetic 1 | . . . . . 1 . Robot Hit Streak 23 | . 6 . . 10 23 . Robot Miss Streak 2 | . 1 . . 2 1 . Penetration Max . | . . . . . . . Secondary Targets . | . . . . . . . Shots Hit Robots 34 | . 11 . . 10 13 . Core Hits 13 | . 4 . . 6 3 . Critical Kills . | . . . . . . . Critical Parts Destroyed . | . . . . . . . Critical Strikes 1 | . . . . 1 . . Burn 1 | . . . . 1 . . Melee Attacks . | . . . . . . . Impact . | . . . . . . . Slashing . | . . . . . . . Piercing . | . . . . . . . Sneak Attacks . | . . . . . . . Combat Hostiles . | . . . . . . . Follow-up Attacks . | . . . . . . . Damage Inflicted 479 | . 158 . . 121 195 5 Guns 369 | . 86 . . 121 162 . Cannons . | . . . . . . . Explosions . | . . . . . . . Melee . | . . . . . . . Ramming 38 | . . . . . 33 5 Kinetic 68 | . . . . . 68 . Thermal 355 | . 158 . . 121 76 . Explosive . | . . . . . . . Electromagnetic 18 | . . . . . 18 . Impact . | . . . . . . . Slashing . | . . . . . . . Piercing . | . . . . . . . Highest Corruption . | . . . . . . . Average Corruption . | . . . . . . . Corruption Purged . | . . . . . . . Corruption Blocked . | . . . . . . . Overload Shots . | . . . . . . . Overflow Damage 4 | . 4 . . . . . Projectiles 4 | . 4 . . . . . Explosions . | . . . . . . . Melee . | . . . . . . . Knockbacks . | . . . . . . . Impact . | . . . . . . . Kinetic . | . . . . . . . Secondary . | . . . . . . . Self-Inflicted Damage 2 | . . . . . 2 . Shots . | . . . . . . . Rammed 3 | . . . . . 3 . Targets Rammed 14 | . . . . . 9 5 Kicked 11 | . . . . . 6 5 Crushed . | . . . . . . . Highest Temperature 121 | . 120 . . 121 96 . Average Temperature 44 | . 45 . . 52 37 . Received Heat Transfer 1125 | . 12 . . 69 945 99 Siege Activations . | . . . . . . . Robots Corrupted . | . . . . . . . Combat Hostiles . | . . . . . . . Parts Fried . | . . . . . . . Impact Corruptions . | . . . . . . . Robots Melted . | . . . . . . . Combat Hostiles . | . . . . . . . Parts Melted 2 | . . . . 1 1 . Heat Transferred 956 | . 350 . . 384 222 . Parts Sabotaged . | . . . . . . . Parts Stolen . | . . . . . . . Parts Stripped . | . . . . . . . Power Chain Reactions . | . . . . . . . Alert | -11 -10 -10 -10 -9 -8 -8 ------- Run | Yrd Mat Min Exi Min Mat Gar Peak Influence 193 | . 193 63 . 80 126 28 Initial 63 | . . 63 . . 26 14 Average 45 | . 108 63 . 10 34 17 Maximum Alert Level . | . . . . . . . Low Security (%) 100 | 100 100 100 . 100 100 100 Level 1 . | . . . . . . . Level 2 . | . . . . . . . Level 3 . | . . . . . . . Level 4 . | . . . . . . . Level 5 . | . . . . . . . High Security . | . . . . . . . Max Security . | . . . . . . . Squads Dispatched 4 | . 1 . . . 3 . Investigation 2 | . 1 . . . 1 . Extermination . | . . . . . . . Reinforcement 2 | . . . . . 2 . Assault . | . . . . . . . Garrison . | . . . . . . . Intercept . | . . . . . . . Searches Triggered . | . . . . . . . Construction Impeded . | . . . . . . . Haulers Reinforced . | . . . . . . . Active Scanning Responses . | . . . . . . . Cargo Convoy Interrupts . | . . . . . . . Stealth | -11 -10 -10 -10 -9 -8 -8 --------- Run | Yrd Mat Min Exi Min Mat Gar Distress Signals 2 | . . . . . 2 . Communications Jammed . | . . . . . . . Distress Signals . | . . . . . . . Times Spotted 51 | . 9 . . 3 37 2 Peak Tracking Total 23 | . 3 . . 2 23 2 Tactical Retreats 6 | . 3 . . . 3 . Traps | -11 -10 -10 -10 -9 -8 -8 ------- Run | Yrd Mat Min Exi Min Mat Gar Traps Triggered 4 | . 1 . . 2 . 1 Indirectly . | . . . . . . . Trap Hack Attempts . | . . . . . . . Triggered . | . . . . . . . Disarmed . | . . . . . . . Reprogrammed . | . . . . . . . Reused . | . . . . . . . Traps Extracted . | . . . . . . . Installed . | . . . . . . . Triggered 3 | . . . . 3 . . Machines | -11 -10 -10 -10 -9 -8 -8 ---------- Run | Yrd Mat Min Exi Min Mat Gar Machines Disabled 1 | . 1 . . . . . Max in Single Turn 1 | . 1 . . . . . Machines Repaired . | . . . . . . . Machines Dismantled . | . . . . . . . Machines Sabotaged . | . . . . . . . Overloaded Fab Kills . | . . . . . . . Hacking | -11 -10 -10 -10 -9 -8 -8 --------- Run | Yrd Mat Min Exi Min Mat Gar Machines Accessed 11 | . 2 . 4 1 3 1 Terminals 5 | . 2 . . . 2 1 Fabricators . | . . . . . . . Repair Stations . | . . . . . . . Recycling Units . | . . . . . . . Scanalyzers . | . . . . . . . Garrison Access 1 | . . . . . 1 . Total Hacks 41 | . 3 . 28 1 6 3 Successful 34 | . 1 . 28 1 3 1 Failed 7 | . 2 . . . 3 2 Catastrophic 2 | . 1 . . . . 1 Database Lockouts . | . . . . . . . Manual 8 | . 3 . 1 . 2 2 Terminals 11 | . 3 . . . 5 3 Fabricators . | . . . . . . . Repair Stations . | . . . . . . . Recycling Units . | . . . . . . . Scanalyzers . | . . . . . . . Garrison Access 1 | . . . . . 1 . Terminal Hacks 33 | . 1 . 28 1 2 1 Record 27 | . . . 27 . . . Open Door 1 | . . . . 1 . . Unreport Threat 1 | . . . . . 1 . Zone Layout 2 | . 1 . . . 1 . Security Stations 1 | . . . . . . 1 Derelict Proto ID Bank 1 | . . . 1 . . . Fabricator Hacks . | . . . . . . . Repair Station Hacks . | . . . . . . . Recycling Unit Hacks . | . . . . . . . Scanalyzer . | . . . . . . . Garrison Access Hacks 1 | . . . . . 1 . Unlock Access 1 | . . . . . 1 . Unauthorized Hacks . | . . . . . . . Terminals . | . . . . . . . Fabricators . | . . . . . . . Repair Stations . | . . . . . . . Recycling Units . | . . . . . . . Scanalyzers . | . . . . . . . Garrison Access . | . . . . . . . Data Cores Recovered . | . . . . . . . Used . | . . . . . . . Hacking Detections 4 | . 2 . . . 1 1 Full Trace Events 2 | . 1 . . . 1 . Feedback Events . | . . . . . . . Feedback Blocked . | . . . . . . . Robot Schematics Acquired . | . . . . . . . Robots Built . | . . . . . . . Authchips . | . . . . . . . Time . | . . . . . . . Total Robot Build Rating . | . . . . . . . Part Schematics Acquired . | . . . . . . . Parts Built . | . . . . . . . Authchips . | . . . . . . . Time . | . . . . . . . Total Part Build Rating . | . . . . . . . Parts Repaired . | . . . . . . . Time . | . . . . . . . Parts Recycled . | . . . . . . . Recycled Matter . | . . . . . . . Retrieved Matter . | . . . . . . . Retrieved Components . | . . . . . . . Parts Scanalyzed . | . . . . . . . Part Schematics Acquired . | . . . . . . . Parts Damaged . | . . . . . . . Bothacking | -11 -10 -10 -10 -9 -8 -8 ------------ Run | Yrd Mat Min Exi Min Mat Gar Used RIF Installer . | . . . . . . . Robots Hacked . | . . . . . . . Non-combat . | . . . . . . . Combat . | . . . . . . . Robot Hacks Applied . | . . . . . . . Relay Couplers Released . | . . . . . . . Fabnet Peak Effective % . | . . . . . . . Robots Rewired . | . . . . . . . Allies Hacked . | . . . . . . . Hacks Repelled . | . . . . . . . Allies | -11 -10 -10 -10 -9 -8 -8 -------- Run | Yrd Mat Min Exi Min Mat Gar Total Allies . | . . . . . . . Largest Group . | . . . . . . . Highest-Rated Group . | . . . . . . . Highest-Rated Ally . | . . . . . . . Total Orders . | . . . . . . . Ally Attacks . | . . . . . . . Total Damage . | . . . . . . . Kills . | . . . . . . . Allies Corrupted . | . . . . . . . Allies Melted . | . . . . . . . Intel | -11 -10 -10 -10 -9 -8 -8 ------- Run | Yrd Mat Min Exi Min Mat Gar Robot Analysis Total . | . . . . . . . Derelict Logs Recovered . | . . . . . . . Drone Launches . | . . . . . . . Drone Recoveries . | . . . . . . . Exploration | -11 -10 -10 -10 -9 -8 -8 ------------- Run | Yrd Mat Min Exi Min Mat Gar Turns Passed 2358 | 43 336 64 774 263 771 107 Spaces Moved 1577 | 35 224 48 645 171 375 79 Core 24 | 18 . . . . 6 . Treads . | . . . . . . . Legs 1553 | 17 224 48 645 171 369 79 Wheels . | . . . . . . . Hover . | . . . . . . . Flight . | . . . . . . . Fastest Speed 50 | 50 120 120 120 120 50 120 Average Speed 117 | 86 120 120 120 120 114 120 Slowest Speed 180 | 150 120 120 120 120 180 120 Overloaded Moves . | . . . . . . . Propulsion Burnouts . | . . . . . . . Robots Hopped . | . . . . . . . Cave-ins Triggered . | . . . . . . . Time Travels 1 | . . . . . 1 . Exploration Rate (%) 31 | 2 22 9 93 40 42 12 Regions Visited 6 Branch Regions 3 Pre-discovered Areas 1 | . . . 1 . . . Known Exits Taken 1 | . . . . . 1 . Unknown Exits Taken 5 | 1 1 1 1 1 . . Scrap Searched . | . . . . . . . Spaces Dug . | . . . . . . . Terrain Destroyed 4 | . 4 . . . . . Melee . | . . . . . . . Projectile 4 | . 4 . . . . . AOE . | . . . . . . . Terrain Rammed . | . . . . . . . Walls Destroyed . | . . . . . . . Machines Disabled . | . . . . . . . Actions | -11 -10 -10 -10 -9 -8 -8 --------- Run | Yrd Mat Min Exi Min Mat Gar Total 2007 | 46 254 54 645 216 702 90 Wait 326 | . 11 7 . 31 277 . Move 1572 | 34 223 47 644 170 375 79 Hop . | . . . . . . . Pick Up 29 | 6 6 . 1 4 12 . Fast Attach 2 | 2 . . . . . . Attach 22 | 4 4 . . . 9 5 Detach . | . . . . . . . Swap 8 | . 1 . . 3 4 . Drop 9 | . . . . 1 8 . Fire 24 | . 9 . . 7 8 . Melee . | . . . . . . . Ram 3 | . . . . . 3 . Kick 11 | . . . . . 6 5 Crush . | . . . . . . . Escape Stasis 1 | . . . . . . 1 Rewire . | . . . . . . . Trap . | . . . . . . . Miscellaneous . | . . . . . . . Route ------- -11/Scrapyard -10/Materials -10/Mines -10/Exiles (discovered 2 exits: *Min x2) -9/Mines -8/Materials -8/Garrison History --------- Turn | Location | Event 2 | -11/Scrapyard | Met Revision 17 7 | -11/Scrapyard | Discovered new exit (range 15) 44 | -11/Scrapyard | Entered Materials 44 | -10/Materials | Discovered new exit (range 14) 317 | -10/Materials | Build established: Mutant 380 | -10/Materials | Entered Mines 439 | -10/Mines | Deemed a non-threat by the Exiles lab entrance 439 | -10/Mines | Discovered new exit (range 5) 444 | -10/Mines | Entered Exiles 465 | -10/Exiles | Discovered new exit (range 14) 506 | -10/Exiles | Met 8R-AWN 525 | -10/Exiles | Met EX-HEX 566 | -10/Exiles | Met EX-BIN 586 | -10/Exiles | Aligned with FarCom system 587 | -10/Exiles | Given EX-Vault access code 629 | -10/Exiles | Opened EX-Vault 693 | -10/Exiles | Warned to stay clear of 0b10 Research branches 740 | -10/Exiles | Found Chronowheel 804 | -10/Exiles | Met EX-DEC 811 | -10/Exiles | Learned location of Zion (-7) 940 | -10/Exiles | Visited The Gauntlet 1203 | -10/Exiles | Discovered new exit (range 12) 1218 | -10/Exiles | Left Exiles lab with Chronowheel 1218 | -10/Exiles | Entered Mines 1223 | -9/Mines | Met a Derelict who couldn't figure out how to use a Trap Extractor 1362 | -9/Mines | Assembled infested the area 1367 | -9/Mines | Assisted by a Guerilla fighting off Assembled 1433 | -9/Mines | Discovered new exit (range 9) 1481 | -9/Mines | Entered Materials 1481 | -8/Materials | Evolved 4 slots: Power x1, Utility x3 2130 | -8/Materials | Activated Chronowheel 2130 | -8/Materials | Spacetime reconverged on an earlier point 2240 | -8/Materials | Core integrity fell below 50% 2247 | -8/Materials | Core integrity fell below 20% 2252 | -8/Materials | Identified exit to Garrison 2252 | -8/Materials | Entered Garrison 2281 | -8/Garrison | Lost 13 parts (2p2n5u4w) 2319 | -8/Garrison | Learned Factory security intel 2330 | -8/Garrison | Triggered checkpoint 2359 | -8/Garrison | Destroyed by G-47 Trooper with Particle Gun Last Messages --------------- LOCATION=GARRISON GOAL=ESCAPE 02252_ Receiving FarCom transmissions... 02319_ Connecting with Garrison Terminal... >>Download(Security) Retrieving Factory security records... Downloaded coordinate data. Data stored: Factory security intel. 02319_ Connecting with Garrison Terminal... 02330_ Beams of light sweep through the air. An alarm sounds. 02335_ Triggered Stasis Trap. 02335_ A bubble of rippling energy engulfs the area. 02335_ Field strength at 60. 02336_ Field strength at 20. 02337_ Stasis field depleted. 02342_ Flexi-carbon Leg destroyed. 02351_ Kicked G-47 Trooper. 02356_ Kicked G-47 Trooper out of the way. Map ----- +----------------------------------------------------+ | ?????????????????????????????????????????????????? | | ?????????????????????????????????????????????????? | | ?????????????????????????????????????????????????? | | ?????????????????????????????????????????????????? | | ?????????????????????????????????????????????????? | | ?????????????????????????????????????????????????? | | ?????????????????????????????????????????????????? | | ?????????????????????????????????????????????????? | | ?????????????????????????????????????????????????? | | ?????????????????????????????????????????????????? | | ?????????????????????????????????????????????????? | | ?????????????????????????????????????????????????? | | ?????????????????????????????????????????????????? | | ?????????????????????????????????????????????????? | | ?????????????????????????????????????????????????? | | ?????????????????????????????????????????????????? | | ?????????????????????????????????????????????????? | | ???????????# ################################### | | ???????????# # | | ???????????# # | | ???????????# # | | ???????????##################### ############ # | | ???????????????????????????????# #??????????# # | | ???????????????????????????????# #??????????##### | | ?????????????????############### #??????????????? | | ?????????????????# g @ #??????????????? | | ?????????????????# g #??????????????? | | ?????????????????## ##### ### #??????????????? | | ?????????????????#"""""#??# #?# #??????????????? | | ?????????????????#######??#####?# #??????????????? | | ????????????????????????????????# #??????????????? | | ????????????????????????????????# ##?????????????? | | ????????????????????????????????# "#?????????????? | | ????????????????????????????????# T#?????????????? | | ????????????????????????????????#""#?????????????? | | ????????????????????????????????####?????????????? | | ?????????????????????????????????????????????????? | | ?????????????????????????????????????????????????? | | ?????????????????????????????????????????????????? | | ?????????????????????????????????????????????????? | | ?????????????????????????????????????????????????? | | ?????????????????????????????????????????????????? | | ?????????????????????????????????????????????????? | | ?????????????????????????????????????????????????? | | ?????????????????????????????????????????????????? | | ?????????????????????????????????????????????????? | | ?????????????????????????????????????????????????? | | ?????????????????????????????????????????????????? | | ?????????????????????????????????????????????????? | | ?????????????????????????????????????????????????? | +----------------------------------------------------+ Best States ------------- Heat Dissipation 31 Energy Generation 15 Energy Capacity 275 Matter Stores 276 Matter Capacity 300 Sight Range 16 Terrain Scan Density 10 Resistance: KI 20 Resistance: TH 20 Resistance: EX 20 Resistance: EM 20 Resistance: I 20 Resistance: S 20 Resistance: P 20 Power Shielding 66 Evasion (%) 59 Targeting Accuracy 5 Offensive Hacking 10 Defensive Hacking 10 Item Schematics ----------------- None Robot Schematics ------------------ None Fabricated ------------ Nothing Alien Tech Used ----------------- None Achievements -------------- None Challenges ------------ None Game ------ Seed AnalysisInsulationHammer Manual? 0 Play Time 00:32:58 Cumulative 59.0 hours Start 2024.06.22 @ 12:31:12 End 2024.06.22 @ 13:05:03 Sessions 1 Manual Loads 0 Difficulty Adventurer Special Mode None Game No. 86 Rogue 17 Adventurer 69 Explorer 0 Win Type - Total 0 Types 0/0/0/0/0/0/0/0/0 Lore% 26 Gallery% 49 Achievement% 42 Wizard Run 0 Options --------- Layout 1 ASCII 0 Keyboard 0 Movement Mouse Keybinds 0 Fullscreen 1 Font 32/SmallcapsGlow Map View 50x35 Zoom Use 0% Tactical HUD 1 Map Filters NONE Filters NONE Steam 1 RUN: e3edca8d-8153-4c0f-ae19-11a8a3cd1ad4